fUSD/lending_fUSD_20250620
["ID","MTS","AMOUNT","RATE_DAILY","PERIOD"]
[366772078,1750440715260,-490.0,0.00029495,4]
[366772079,1750440715271,-490.0,0.00029495,4]
[366772080,1750440715282,-634.64,0.00029495,4]
[366772081,1750440715293,-3814.59,0.00029495,2]
[366772082,1750440715303,-1940.17,0.00029495,4]
[366772083,1750440715315,-490.0,0.00029495,4]
[366772084,1750440715326,-710.04,0.00029495,4]
[366772085,1750440715338,-682.88,0.00029495,4]
[366772086,1750440715348,-490.0,0.00029495,4]
[366772087,1750440715359,-2290.89,0.00029495,4]
[366772088,1750440715370,-490.0,0.00029495,4]
[366772089,1750440715380,-2759.01,0.00029495,4]
[366772090,1750440715391,-3647.07,0.00029495,4]
[366772091,1750440715403,-651.97,0.00029495,4]
[366772092,1750440715414,-582.01,0.00029495,4]
[366772093,1750440715425,-1217.61,0.00029495,4]
[366772094,1750440715436,-847.56,0.00029495,4]
[366772095,1750440715679,-490.0,0.00029495,4]
[366772096,1750440715691,-1886.27,0.00029495,4]
[366772097,1750440715701,-367.37952735,0.00029495,4]
[366772098,1750440715712,-1594.08,0.00029495,4]
[366772099,1750440715722,-306.62456332,0.00029495,4]
[366772100,1750440715733,-490.0,0.00029495,4]
[366772101,1750440715744,-1903.29,0.00029495,4]
[366772102,1750440715756,-665.17,0.00029495,4]
[366772103,1750440715767,-638.76,0.00029495,4]
[366772104,1750440715778,-538.1,0.00029495,4]
[366772105,1750440715789,-663.16252681,0.00029495,4]
[366772106,1750440715799,-701.54,0.00029495,4]
[366772107,1750440715810,-632.98,0.00029495,4]
[366772108,1750440715820,-490.0,0.00029495,4]
[366772109,1750440715831,-1799.61,0.00029495,4]
[366772110,1750440715840,-543.75,0.00029495,4]
[366772111,1750440715850,-333.98284102,0.00029495,4]
[366772112,1750440715860,-490.0,0.00029495,4]
[366772113,1750440715871,-751.18,0.00029495,4]
[366772114,1750440715881,-490.0,0.00029495,4]
[366772115,1750440715891,-1965.09,0.00029495,4]
[366772116,1750440715901,-490.0,0.00029495,4]
[366772117,1750440715911,-490.0,0.00029495,4]
[366772118,1750440715922,-835.07,0.00029495,4]
[366772119,1750440715931,-506.38,0.00029495,4]
[366772120,1750440715942,-535.19,0.00029495,4]
[366772121,1750440715952,-1865.75,0.00029495,4]
[366772122,1750440715962,-490.0,0.00029495,4]
[366772123,1750440715972,-490.0,0.00029495,4]
[366772124,1750440715982,-2004.72,0.00029495,4]
[366772125,1750440715993,-593.92,0.00029495,4]
[366772126,1750440716003,-764.06,0.00029495,4]
[366772127,1750440716013,-843.4,0.00029495,4]
[366772128,1750440716031,-490.0,0.000295,4]
[366772129,1750440716041,-496.62,0.000295,4]
[366772130,1750440716051,-490.0,0.000295,4]
[366772131,1750440716062,-592.71,0.000295,4]
[366772132,1750440716072,-490.0,0.000295,4]
[366772133,1750440716082,-490.0,0.000295,4]
[366772134,1750440716092,-705.73,0.000295,4]
[366772135,1750440716103,-490.0,0.000295,4]
[366772136,1750440716113,-244.60809985,0.000295,4]
[366772137,1750440716123,-490.0,0.000295,4]
[366772138,1750440716134,-490.0,0.000295,4]
[366772139,1750440716144,-490.0,0.000295,4]
[366772140,1750440716154,-490.0,0.000295,4]
[366772141,1750440716165,-490.0,0.000295,4]
[366772142,1750440716178,-279.24329629,0.000295,4]
[366772143,1750440716189,-490.0,0.000295,4]
[366772144,1750440716199,-490.0,0.000295,4]
[366772145,1750440716210,-490.0,0.000295,4]
[366772146,1750440716220,-490.0,0.000295,4]
[366772147,1750440716232,-260.77771355,0.000295,4]
[366772148,1750440716243,-490.0,0.000295,4]
[366772149,1750440716261,-678.01,0.000295,4]
[366772150,1750440716276,-490.0,0.000295,4]
[366772151,1750440716286,-667.64,0.000295,4]
[366772152,1750440716297,-4654.55,0.000295,4]
[366772153,1750440716307,-1757.34,0.000295,4]
[366772154,1750440716318,-490.0,0.000295,4]
[366772155,1750440716327,-2408.79,0.000295,4]
[366772156,1750440716336,-484.298847,0.000295,4]
[366772157,1750440716346,-933.37,0.000295,4]
[366772158,1750440716356,-490.0,0.000295,4]
[366772159,1750440716366,-490.0,0.000295,4]
[366772160,1750440716375,-490.0,0.000295,4]
[366772161,1750440716385,-490.0,0.000295,4]
[366772162,1750440716396,-1279.77,0.000295,4]
[366772163,1750440716407,-490.0,0.000295,4]
[366772164,1750440716418,-490.0,0.000295,4]
[366772165,1750440716437,-739.04,0.000295,4]
[366772166,1750440716451,-492.60498164,0.000295,4]
[366772167,1750440716462,-499.97,0.000295,4]
[366772168,1750440716473,-490.0,0.000295,4]
[366772169,1750440716483,-490.0,0.000295,4]
[366772170,1750440716500,-490.0,0.000295,4]
[366772171,1750440716510,-543.59,0.000295,4]
[366772172,1750440716521,-490.0,0.000295,4]
[366772173,1750440716532,-490.0,0.000295,4]
[366772174,1750440716543,-490.0,0.000295,4]
[366772175,1750440716553,-490.0,0.00029506,4]
[366772176,1750440716564,-490.0,0.00029506,4]
[366772177,1750440716575,-692.35,0.00029506,4]
[366772178,1750440716585,-639.62,0.00029506,4]
[366772179,1750440716595,-490.0,0.00029506,4]
[366772180,1750440716605,-490.0,0.00029506,4]
[366772181,1750440716615,-490.0,0.00029506,4]
[366772182,1750440716626,-490.0,0.00029506,4]
[366772183,1750440716636,-490.0,0.00029506,4]
[366772184,1750440716647,-168.3888056,0.00029546,2]
[366772185,1750440716657,-231.28369723,0.00029546,2]
[366772186,1750440716668,-587.0,0.0002967,2]
[366772187,1750440716679,-150.0,0.00029683,2]
[366772188,1750440716690,-559.0,0.00029703,2]
[366772189,1750440716700,-1278.0,0.00029703,2]
[366772190,1750440716709,-2004.0,0.00029703,2]
[366772191,1750440716719,-591.0,0.00029703,2]
[366772192,1750440716730,-928.0,0.00029703,2]
[366772193,1750440716740,-1675.0,0.00029703,2]
[366772194,1750440716752,-1161.0,0.00029703,2]
[366772195,1750440716762,-946.0,0.00029703,2]
[366772196,1750440716773,-3334.0,0.00029703,2]
[366772197,1750440716787,-156.0,0.00029703,2]
[366772198,1750440716797,-7117.0,0.00029703,2]
[366772199,1750440716807,-1778.750864,0.0002976,5]
[366772200,1750440716816,-490.0,0.00029767,4]
[366772201,1750440716828,-605.56189274,0.00029767,4]
[366772202,1750440716838,-501.65,0.00029767,4]
[366772203,1750440716848,-490.0,0.00029767,4]
[366772204,1750440716862,-830.23,0.00029767,4]
[366772205,1750440716872,-665.05,0.00029767,4]
[366772206,1750440716882,-736.8,0.00029767,4]
[366772207,1750440716892,-345.41563358,0.00029767,4]
[366772208,1750440716902,-490.0,0.00029767,4]
[366772209,1750440716912,-2220.12,0.00029767,4]
[366772210,1750440716922,-713.54,0.00029767,4]
[366772211,1750440716932,-1265.1,0.00029767,4]
[366772212,1750440716942,-535.39,0.00029767,4]
[366772213,1750440716952,-793.31,0.00029767,4]
[366772214,1750440716962,-1348.24,0.00029767,4]
[366772215,1750440716971,-666.61,0.00029767,4]
[366772216,1750440716982,-490.0,0.00029767,4]
[366772217,1750440716993,-490.0,0.00029767,4]
[366772218,1750440717005,-490.0,0.00029767,4]
[366772219,1750440717015,-1177.57,0.00029767,4]
[366772220,1750440717028,-490.0,0.00029767,4]
[366772221,1750440717038,-490.0,0.00029767,4]
[366772222,1750440717048,-771.36,0.00029767,4]
[366772223,1750440717058,-2057.42,0.00029767,4]
[366772224,1750440717067,-444.77,0.00029767,4]
[366772225,1750440717077,-490.0,0.00029768,4]
[366772226,1750440717087,-490.0,0.00029768,4]
[366772227,1750440717097,-490.0,0.00029768,4]
[366772228,1750440717107,-490.0,0.00029768,4]
[366772229,1750440717118,-490.0,0.00029768,4]
[366772230,1750440717129,-716.45,0.00029768,4]
[366772231,1750440717141,-490.0,0.00029768,4]
[366772232,1750440717151,-520.24,0.00029768,4]
[366772233,1750440717161,-754.42,0.00029768,4]
[366772234,1750440717172,-602.12,0.00029768,4]
[366772235,1750440717182,-490.0,0.00029768,4]
[366772236,1750440717192,-345.81942864,0.00029768,4]
[366772237,1750440717202,-905.83,0.00029768,4]
[366772238,1750440717213,-490.0,0.00029768,4]
[366772239,1750440717223,-490.0,0.00029768,4]
[366772240,1750440717233,-492.17,0.00029768,4]
[366772241,1750440717244,-1393.17,0.00029768,4]
[366772242,1750440717254,-490.0,0.00029768,4]
[366772243,1750440717265,-490.0,0.00029768,4]
[366772244,1750440717275,-584.86,0.00029768,4]
[366772245,1750440717286,-490.0,0.00029768,4]
[366772246,1750440717296,-509.4,0.00029768,4]
[366772247,1750440717306,-721.05,0.00029768,4]
[366772248,1750440717317,-834.17,0.00029768,4]
[366772249,1750440717327,-200.80419354,0.00029768,4]
[366772250,1750440717338,-554.92,0.00029768,4]
[366772251,1750440717348,-561.01738769,0.00029768,4]
[366772252,1750440717359,-490.0,0.00029768,4]
[366772253,1750440717369,-490.0,0.00029768,4]
[366772254,1750440717379,-490.0,0.00029768,4]
[366772255,1750440717389,-490.0,0.00029768,4]
[366772256,1750440717399,-555.61,0.00029768,4]
[366772257,1750440717410,-490.0,0.00029768,4]
[366772258,1750440717420,-490.0,0.00029768,4]
[366772259,1750440717430,-490.0,0.00029768,4]
[366772260,1750440717440,-541.25,0.00029768,4]
[366772261,1750440717450,-490.0,0.00029768,4]
[366772262,1750440717460,-490.0,0.00029768,4]
[366772263,1750440717471,-490.0,0.00029768,4]
[366772264,1750440717481,-527.51,0.00029768,4]
[366772265,1750440717491,-764.08,0.00029768,4]
[366772266,1750440717501,-490.0,0.00029768,4]
[366772267,1750440717511,-570.69,0.00029768,4]
[366772268,1750440717520,-490.0,0.00029768,4]
[366772269,1750440717532,-490.0,0.00029768,4]
[366772270,1750440717541,-890.98,0.00029768,4]
[366772271,1750440717551,-546.75,0.00029768,4]
[366772272,1750440717562,-1938.15,0.00029768,4]
[366772273,1750440717572,-490.0,0.00029768,4]
[366772274,1750440717583,-1286.16,0.00029768,4]
[366772275,1750440717593,-1042.0,0.00029768,4]
[366772276,1750440717603,-490.0,0.00029768,4]
[366772277,1750440717612,-791.65,0.00029768,4]
[366772278,1750440717622,-566.26,0.00029768,4]
[366772279,1750440717632,-823.76,0.00029768,4]
[366772280,1750440717641,-653.43,0.00029768,4]
[366772281,1750440717651,-490.0,0.00029768,4]
[366772282,1750440717661,-797.01,0.00029768,4]
[366772283,1750440717671,-705.01,0.00029768,4]
[366772284,1750440717681,-493.89,0.00029768,4]
[366772285,1750440717691,-499.27,0.00029768,4]
[366772286,1750440717700,-928.6,0.00029768,4]
[366772287,1750440717710,-1752.63,0.00029768,4]
[366772288,1750440717721,-490.0,0.00029768,4]
[366772289,1750440717731,-490.0,0.00029768,4]
[366772290,1750440717744,-490.0,0.00029768,4]
[366772291,1750440717754,-669.55,0.00029768,4]
[366772292,1750440717764,-490.0,0.00029768,4]
[366772293,1750440717774,-490.0,0.00029768,4]
[366772294,1750440717786,-490.0,0.00029768,4]
[366772295,1750440717796,-614.6,0.00029768,4]
[366772296,1750440717806,-513.28,0.00029768,4]
[366772297,1750440717816,-1221.53,0.00029768,4]
[366772298,1750440717826,-490.0,0.00029769,4]
[366772299,1750440717835,-490.0,0.00029769,4]
[366772300,1750440717846,-490.0,0.00029769,4]
[366772301,1750440717855,-490.0,0.00029769,4]
[366772302,1750440717865,-647.28,0.00029769,4]
[366772303,1750440717875,-516.8,0.00029769,4]
[366772304,1750440717885,-667.67,0.00029769,4]
[366772305,1750440717895,-490.0,0.00029769,4]
[366772306,1750440717904,-293.92958888,0.00029769,4]
[366772307,1750440717914,-490.0,0.00029769,4]
[366772308,1750440717924,-425.18485422,0.00029769,4]
[366772309,1750440717942,-79.78514578,0.00029769,4]
[366772310,1750440717952,-490.0,0.00029769,4]
[366772311,1750440717963,-117.75455422,0.00029769,4]
[366772312,1750440717976,-372.24544578,0.00029769,4]
[366772313,1750440717986,-587.0,0.00029769,4]
[366772314,1750440717997,-63.18229453,0.00029769,4]
[366772315,1750440718014,-482.0,0.0002809,2]
[366772316,1750440718029,-18.0,0.0002809,2]
[366772317,1750440718040,-451.32770547,0.00029769,4]
[366772318,1750440718050,-350.67229453,0.00029769,4]
[366772319,1750440718071,-666.06,0.00026755,4]
[366772320,1750440718081,-1000.0,0.00028398,2]
[366772321,1750440718091,-139.32770547,0.00029769,4]
[366772322,1750440718101,-446.60040749,0.00029769,4]
[366772323,1750440718113,-43.39959251,0.00029769,4]
[366772324,1750440718123,-603.69,0.00029769,4]
[366772325,1750440718134,-490.0,0.00029769,4]
[366772326,1750440718145,-916.28,0.00029769,4]
[366772327,1750440718154,-490.0,0.00029769,4]
[366772328,1750440718164,-490.0,0.00029769,4]
[366772329,1750440718175,-578.52,0.00029769,4]
[366772330,1750440718186,-793.1,0.00029769,4]
[366772331,1750440718196,-490.0,0.00029769,4]
[366772332,1750440718207,-490.0,0.00029769,4]
[366772333,1750440718217,-490.0,0.00029769,4]
[366772334,1750440718227,-490.0,0.00029769,4]
[366772335,1750440718238,-490.0,0.00029769,4]
[366772336,1750440718249,-490.0,0.00029769,4]
[366772337,1750440718259,-727.94,0.00029769,4]
[366772338,1750440718269,-490.0,0.00029769,4]
[366772339,1750440718281,-490.0,0.00029769,4]
[366772340,1750440718292,-490.0,0.00029769,4]
[366772341,1750440718302,-490.0,0.00029769,4]
[366772342,1750440718312,-264.35740749,0.00029769,4]
[366772343,1750440718325,-225.64259251,0.00029769,4]
[366772344,1750440718336,-490.0,0.00029769,4]
[366772345,1750440718346,-591.47,0.00029769,4]
[366772346,1750440718356,-1424.33,0.00029769,4]
[366772347,1750440718367,-1144.78,0.00029769,4]
[366772348,1750440718377,-491.74,0.00029769,4]
[366772349,1750440718387,-436.0518331,0.00029769,4]
[366772350,1750440718397,-600.40457319,0.00029769,4]
[366772351,1750440718418,-490.0,0.00027027,4]
[366772352,1750440718428,-6.81357687,0.00029769,4]
[366772353,1750440718440,-468.84184994,0.00029769,4]
[366772354,1750440718450,-509.95,0.00029769,4]
[366772355,1750440718460,-1366.43,0.00029769,4]
[366772356,1750440718470,-527.56,0.00029769,4]
[366772357,1750440718481,-1816.18,0.00029769,4]
[366772358,1750440718491,-468.78815006,0.00029769,4]
[366772359,1750440718661,-490.0,0.00026479,4]
[366772360,1750440718672,-490.0,0.00026487,4]
[366772361,1750440718682,-490.0,0.00026761,4]
[366772362,1750440718693,-666.06,0.00027029,4]
[366772363,1750440718702,-84.58201174,0.00027035,4]
[366772364,1750440718714,-309.5403631,0.00027035,4]
[366772365,1750440718726,-95.87762516,0.00027035,4]
[366772366,1750440718736,-490.0,0.00027301,4]
[366772367,1750440718749,-666.06,0.00027303,4]
[366772368,1750440718759,-490.0,0.00027575,4]
[366772369,1750440718769,-666.06,0.00027577,4]
[366772370,1750440718780,-490.0,0.00027849,4]
[366772371,1750440718791,-666.06,0.00027851,4]
[366772372,1750440718800,-500.0,0.0002809,2]
[366772373,1750440718810,-500.0,0.0002809,2]
[366772374,1750440718820,-500.0,0.0002809,2]
[366772375,1750440718830,-500.0,0.0002809,2]
[366772376,1750440718840,-558.83,0.00028123,4]
[366772377,1750440718849,-212.17654484,0.00028123,4]
[366772378,1750440718876,-277.82345516,0.00028123,4]
[366772379,1750440718886,-42.19299325,0.00028125,4]
[366772380,1750440718898,-623.86700675,0.00028125,4]
[366772381,1750440718909,-558.83,0.00028397,4]
[366772382,1750440718918,-8.99294331,0.00028397,4]
[366772383,1750440718929,-354.46741009,0.00028397,4]
[366772384,1750440718941,-666.06,0.00028399,4]
[366772385,1750440718951,-558.83,0.00028671,4]
[366772386,1750440718960,-181.20074342,0.00028672,2]
[366772387,1750440718971,-818.79925658,0.00028672,2]
[366772388,1750440718981,-666.06,0.00028673,4]
[366772389,1750440718990,-558.83,0.00028945,4]
[366772390,1750440719002,-977.71289263,0.00028946,2]
[366772391,1750440719013,-558.83,0.00029219,4]
[366772392,1750440719022,-558.83,0.00029493,4]
[366772393,1750440719033,-558.83,0.00029767,4]
[366772394,1750440719043,-83.01184994,0.00029769,4]
[366772395,1750440719052,-682.44,0.00029769,4]
[366772396,1750440719062,-490.0,0.00029769,4]
[366772397,1750440719072,-515.01715918,0.00029769,4]
[366772398,1750440719081,-22.63354965,0.00029769,4]
[366772399,1750440719093,-552.22645035,0.00029769,4]
[366772400,1750440719103,-620.74023699,0.00029769,4]
[366772401,1750440719115,-518.08735631,0.00029769,4]
[366772402,1750440719127,-2944.39199836,0.00029769,4]
[366772403,1750440719143,-1620.62035801,0.00029769,4]
[366772404,1750440719155,-1077.6,0.00029769,4]
[366772405,1750440719241,-1065.23875765,0.00029769,4]
[366772406,1750440719277,-500.0,0.0002809,2]
[366772407,1750440719288,-666.06,0.00028947,4]
[366772408,1750440719298,-2256.58129268,0.00029769,4]
[366772409,1750440719308,-490.0,0.00029769,4]
[366772410,1750440719318,-573.4343047,0.00029769,4]
[366772411,1750440719328,-634.64,0.00029769,4]
[366772412,1750440719339,-3814.59,0.00029769,2]
[366772413,1750440719349,-1366.69440261,0.00029769,4]
[366772414,1750440719361,-573.47559739,0.00029769,4]
[366772415,1750440719371,-490.0,0.00029769,4]
[366772416,1750440719382,-710.04,0.00029769,4]
[366772417,1750440719391,-682.88,0.00029769,4]
[366772418,1750440719589,-423.62254507,0.00029769,4]
[366772419,1750440719605,-1124.13955364,0.00029769,4]
[366772420,1750440719618,-1166.75044636,0.00029769,4]
[366772421,1750440719628,-466.56411252,0.00029769,4]
[366772422,1750440719638,-427.68544112,0.00029769,4]
[366772423,1750440719650,-1389.99999999,0.00029769,4]
[366772424,1750440719783,-941.32455889,0.00029769,4]
[366772425,1750440719796,-3647.07,0.00029769,4]
[366772426,1750440719806,-651.97,0.00029769,4]
[366772427,1750440719817,-582.01,0.00029769,4]
[366772428,1750440719827,-1217.61,0.00029769,4]
[366772429,1750440719837,-847.56,0.00029769,4]
[366772430,1750440719847,-490.0,0.00029769,4]
[366772431,1750440719856,-1886.27,0.00029769,4]
[366772432,1750440719866,-1594.08,0.00029769,4]
[366772433,1750440719877,-490.0,0.00029769,4]
[366772434,1750440719887,-1903.29,0.00029769,4]
[366772435,1750440719898,-665.17,0.00029769,4]
[366772436,1750440719908,-638.76,0.00029769,4]
[366772437,1750440719919,-538.1,0.00029769,4]
[366772438,1750440719929,-701.54,0.00029769,4]
[366772439,1750440719939,-632.98,0.00029769,4]
[366772440,1750440719949,-490.0,0.00029769,4]
[366772441,1750440719960,-1799.61,0.00029769,4]
[366772442,1750440719972,-543.75,0.00029769,4]
[366772443,1750440719982,-490.0,0.00029769,4]
[366772444,1750440719992,-751.18,0.00029769,4]
[366772445,1750440720003,-490.0,0.00029769,4]
[366772446,1750440720013,-1965.09,0.00029769,4]
[366772447,1750440720023,-490.0,0.00029769,4]
[366772448,1750440720035,-490.0,0.00029769,4]
[366772449,1750440720045,-835.07,0.00029769,4]
[366772450,1750440720056,-506.38,0.00029769,4]
[366772451,1750440720066,-535.19,0.00029769,4]
[366772452,1750440720076,-1865.75,0.00029769,4]
[366772453,1750440720086,-490.0,0.00029769,4]
[366772454,1750440720096,-490.0,0.00029769,4]
[366772455,1750440720107,-2004.72,0.00029769,4]
[366772456,1750440720116,-593.92,0.00029769,4]
[366772457,1750440720127,-764.06,0.00029769,4]
[366772458,1750440720137,-843.4,0.00029769,4]
[366772459,1750440720147,-164.32682619,0.00029774,4]
[366772460,1750440720158,-496.62,0.00029774,4]
[366772461,1750440720169,-495.15943248,0.00029774,4]
[366772462,1750440720179,-592.71,0.00029774,4]
[366772463,1750440720190,-490.0,0.00029774,4]
[366772464,1750440720200,-473.08629054,0.00029774,4]
[366772465,1750440720210,-705.73,0.00029774,4]
[366772466,1750440720221,-490.0,0.00029774,4]
[366772467,1750440720232,-490.0,0.00029774,4]
[366772468,1750440720242,-490.0,0.00029774,4]
[366772469,1750440720252,-490.0,0.00029774,4]
[366772470,1750440720263,-490.0,0.00029774,4]
[366772471,1750440720273,-490.0,0.00029774,4]
[366772472,1750440720288,-490.0,0.00029774,4]
[366772473,1750440720299,-490.0,0.00029774,4]
[366772474,1750440720310,-490.0,0.00029774,4]
[366772475,1750440720320,-490.0,0.00029774,4]
[366772476,1750440720330,-490.0,0.00029774,4]
[366772477,1750440720341,-678.01,0.00029774,4]
[366772478,1750440720351,-199.6872803,0.00029774,4]
[366772479,1750440720362,-667.64,0.00029774,4]
[366772480,1750440720372,-4654.55,0.00029774,4]
[366772481,1750440720383,-1757.34,0.00029774,4]
[366772482,1750440720394,-490.0,0.00029774,4]
[366772483,1750440720404,-2408.79,0.00029774,4]
[366772484,1750440720415,-933.37,0.00029774,4]
[366772485,1750440720427,-490.0,0.00029774,4]
[366772486,1750440720437,-490.0,0.00029774,4]
[366772487,1750440720448,-490.0,0.00029774,4]
[366772488,1750440720458,-490.0,0.00029774,4]
[366772489,1750440720468,-1279.77,0.00029774,4]
[366772490,1750440720478,-490.0,0.00029774,4]
[366772491,1750440720489,-246.68804952,0.00029774,4]
[366772492,1750440720499,-739.04,0.00029774,4]
[366772493,1750440720509,-499.97,0.00029774,4]
[366772494,1750440720519,-378.68499517,0.00029774,4]
[366772495,1750440720532,-490.0,0.00029774,4]
[366772496,1750440720542,-490.0,0.00029774,4]
[366772497,1750440720552,-543.59,0.00029774,4]
[366772498,1750440720563,-490.0,0.00029774,4]
[366772499,1750440720573,-490.0,0.00029774,4]
[366772500,1750440720584,-490.0,0.00029774,4]
[366772501,1750440720594,-490.0,0.0002978,4]
[366772502,1750440720604,-692.35,0.0002978,4]
[366772503,1750440720614,-639.62,0.0002978,4]
[366772504,1750440720624,-490.0,0.0002978,4]
[366772505,1750440720634,-490.0,0.0002978,4]
[366772506,1750440720645,-490.0,0.0002978,4]
[366772507,1750440720655,-456.76159407,0.0002978,4]
[366772508,1750440720665,-490.0,0.0002978,4]
[366772509,1750440720675,-1000.0,0.0002979,30]
[366772510,1750440720685,-12500.0,0.00029825,3]
[366772511,1750440720695,-12500.0,0.00029834,3]
[366772512,1750440720707,-12500.0,0.00029843,3]
[366772513,1750440720717,-12500.0,0.00029851,3]
[366772514,1750440720728,-12500.0,0.0002986,3]
[366772515,1750440720739,-12500.0,0.00029869,3]
[366772516,1750440720754,-12500.0,0.0002987,3]
[366772517,1750440720768,-12500.0,0.0002987,3]
[366772518,1750440720780,-8550.37540556,0.00029873,3]
[366772519,1750440720790,-3177.37728976,0.000299,2]
[366772520,1750440720802,-2351.0,0.00029907,2]
[366772521,1750440720812,-1692.80737687,0.00029934,22]
[366772522,1750440720824,-500.0,0.00029999,2]
[366772523,1750440720834,-500.0,0.00029999,2]
[366772524,1750440720844,-500.0,0.00029999,2]
[366772525,1750440720854,-524.51333463,0.00029999,2]
[366772526,1750440720863,-500.0,0.00029999,2]
[366772527,1750440720874,-500.0,0.00029999,2]
[366772528,1750440720883,-290.03449447,0.00029999,2]
[366772529,1750440720894,-301.33538022,0.00029999,2]
[366772530,1750440720904,-500.0,0.00029999,2]
[366772531,1750440720913,-500.0,0.00029999,2]
[366772532,1750440720923,-500.0,0.00029999,2]
[366772533,1750440720933,-500.0,0.00029999,2]
[366772534,1750440720942,-500.0,0.00029999,2]
[366772535,1750440720952,-500.0,0.00029999,2]
[366772536,1750440720962,-500.0,0.00029999,2]
[366772537,1750440720971,-500.0,0.00029999,2]
[366772538,1750440720981,-500.0,0.00029999,2]
[366772539,1750440720991,-500.0,0.00029999,2]
[366772540,1750440721001,-500.0,0.00029999,2]
[366772541,1750440721011,-500.0,0.00029999,2]
[366772542,1750440721021,-500.0,0.00029999,2]
[366772543,1750440721034,-228.05959993,0.00029999,2]
[366772544,1750440721044,-500.0,0.00029999,2]
[366772545,1750440721054,-73709.06587971,0.0003,2]
[366772546,1750440721067,-57922.66449144,0.0003,2]
[366772547,1750440721079,-3446.232573,0.0003,2]
[366772548,1750440721362,202.0,0.00022926,2]
[366772549,1750440721544,-150.0,0.00026424,2]
[366772550,1750440721555,-150.0,0.00026435,2]
[366772551,1750440721565,-150.0,0.00026446,2]
[366772552,1750440721576,-300.0,0.00026448,2]
[366772553,1750440721586,-293.4634069,0.00026479,4]
[366772554,1750440721598,-220.1465931,0.00026479,4]
[366772555,1750440721608,-229.44978147,0.00026479,4]
[366772556,1750440721635,-260.55021853,0.00026479,4]
[366772557,1750440721645,-291.68912647,0.0002648,4]
[366772558,1750440721658,-324.94087353,0.0002648,4]
[366772559,1750440721667,-14.29912647,0.00026489,2]
[366772560,1750440721928,-490.0,0.00026479,4]
[366772561,1750440721938,-199.07365927,0.00026487,2]
[366772562,1750440721948,-490.0,0.00026487,4]
[366772563,1750440721958,-452.23409024,0.00026489,2]
[366772564,1750440721968,-150.0,0.00026491,2]
[366772565,1750440721977,-150.0,0.00026513,2]
[366772566,1750440721987,-150.0,0.00026548,2]
[366772567,1750440721997,-150.0,0.00026603,2]
[366772568,1750440722007,-150.0,0.00026612,2]
[366772569,1750440722017,-150.0,0.00026675,2]
[366772570,1750440722026,-150.0,0.00026682,2]
[366772571,1750440722039,-34.79258799,0.00026703,2]
[366772572,1750440722052,-848.97141201,0.00026703,2]
[366772573,1750440722062,-79.44880454,0.00026753,4]
[366772574,1750440722074,-434.16119546,0.00026753,4]
[366772575,1750440722084,-616.63,0.00026754,4]
[366772576,1750440722093,-170.91,0.00026971,2]
[366772577,1750440722103,-513.61,0.00027027,4]